fUST/lending_fUST_20250610
["ID","MTS","AMOUNT","RATE_DAILY","PERIOD"]
[365202443,1749531051633,-460.0,0.00022739,4]
[365202445,1749531051646,-720.71,0.00022739,4]
[365202448,1749531051658,-1021.0,0.00022747,7]
[365202450,1749531051671,-842.5625,0.00022747,7]
[365202452,1749531051684,-160.0,0.00022768,5]
[365202455,1749531051696,-375.6232858,0.00022768,2]
[365202457,1749531051709,-1500.0,0.00022768,2]
[365202460,1749531051720,-500.0,0.0002278,2]
[365202462,1749531051733,-500.0,0.0002278,2]
[365202464,1749531051746,-576.64661529,0.00022831,8]
[365202467,1749531051758,-200.0,0.00022934,2]
[365202469,1749531051770,-2863.31,0.00022935,2]
[365202472,1749531051783,-43034.49597123,0.0002295,7]
[365202474,1749531051796,-43034.49597123,0.0002295,7]
[365202476,1749531051808,-576.64661529,0.00022969,8]
[365202479,1749531051821,-215.0738,0.00022974,2]
[365202481,1749531051833,-1021.0,0.00022981,7]
[365202483,1749531051846,-151.0,0.00023,7]
[365202486,1749531051858,-501.26,0.00023,3]
[365202488,1749531051870,-160.0,0.00023,3]
[365202491,1749531051884,-160.0,0.00023,3]
[365202493,1749531051897,-834.9046531,0.00023,3]
[365202495,1749531051910,-842.5625,0.00023,3]
[365202498,1749531051923,-460.0,0.00023013,4]
[365202500,1749531051936,-151.0,0.00023013,7]
[365202502,1749531051948,-1005.23,0.00023013,4]
[365202505,1749531051962,-460.0,0.00023013,4]
[365202507,1749531051975,-460.0,0.00023013,4]
[365202509,1749531051987,-460.0,0.00023013,4]
[365202512,1749531052000,-460.0,0.00023013,4]
[365202514,1749531052013,-789.03,0.00023013,4]
[365202517,1749531052029,-460.0,0.00023013,4]
[365202519,1749531052041,-904.42,0.00023013,4]
[365202521,1749531052054,-1269.66,0.00023013,4]
[365202524,1749531052066,-4205.02,0.00023013,4]
[365202526,1749531052079,-1018.83,0.00023013,4]
[365202528,1749531052091,-923.71,0.00023013,4]
[365202530,1749531052100,-518.65377666,0.00023013,4]
[365202532,1749531052110,-720.71,0.00023013,4]
[365202534,1749531052119,-963.0,0.00023023,2]
[365202550,1749531052255,-2160.0,0.00023023,2]
[365202552,1749531052265,-653.0,0.00023023,2]
[365202554,1749531052276,-465.294,0.00023023,2]
[365202556,1749531052285,-150.125,0.00023023,2]
[365202558,1749531052295,-600.0,0.0002304,2]
[365202561,1749531052304,-163.7222236,0.00023096,2]
[365202563,1749531052314,-163.7222236,0.00023096,2]
[365202565,1749531052323,-151.0,0.000231,7]
[365202567,1749531052332,-576.64661529,0.00023107,8]
[365202569,1749531052341,-504.02227482,0.000232,2]
[365202571,1749531052350,-500.0,0.000232,2]
[365202572,1749531052360,-1021.0,0.00023215,7]
[365202574,1749531052369,-576.64661529,0.00023245,8]
[365202576,1749531052379,-601.48050061,0.0002328,2]
[365202578,1749531052389,-460.0,0.00023287,4]
[365202580,1749531052399,-151.0,0.00023287,7]
[365202583,1749531052408,-181.342063,0.00023287,7]
[365202584,1749531052419,-181.342063,0.00023287,7]
[365202587,1749531052431,-1005.23,0.00023287,4]
[365202589,1749531052441,-191.10027075,0.00023287,4]
[365202591,1749531052451,-460.0,0.00023287,4]
[365202593,1749531052461,-460.0,0.00023287,4]
[365202595,1749531052473,-460.0,0.00023287,4]
[365202597,1749531052483,-789.03,0.00023287,4]
[365202599,1749531052492,-460.0,0.00023287,4]
[365202601,1749531052504,-904.42,0.00023287,4]
[365202603,1749531052513,-1269.66,0.00023287,4]
[365202605,1749531052523,-4205.02,0.00023287,4]
[365202607,1749531052533,-1018.83,0.00023287,4]
[365202609,1749531052543,-923.71,0.00023287,4]
[365202611,1749531052552,-720.71,0.00023287,4]
[365202613,1749531052562,-151.0,0.000233,5]
[365202615,1749531052571,-200.06050339,0.00023316,2]
[365202617,1749531052580,-152.916699,0.00023325,7]
[365202619,1749531052589,-501.71124826,0.00023328,2]
[365202621,1749531052599,-1000.0,0.00023328,2]
[365202623,1749531052608,-151.0,0.0002337,4]
[365202625,1749531052617,-151.0,0.0002337,4]
[365202627,1749531052627,-500.0,0.0002337,4]
[365202629,1749531052636,-576.64661529,0.00023383,9]
[365202631,1749531052645,-253.00852025,0.00023397,4]
[365202633,1749531052654,-151.0,0.00023397,4]
[365202634,1749531052664,-500.0,0.00023397,4]
[365202636,1749531052674,-2346.71,0.000234,7]
[365202639,1749531052684,-638.0,0.000234,2]
[365202640,1749531052693,-151.0,0.00023425,4]
[365202643,1749531052703,-500.0,0.00023425,4]
[365202644,1749531052712,-1021.0,0.00023449,7]
[365202647,1749531052723,-194.9397701,0.00023452,4]
[365202648,1749531052733,-189.69404536,0.00023452,4]
[365202651,1749531052742,-200.0,0.00023499,2]
[365202653,1749531052752,-1649.54349,0.00023499,2]
[365202654,1749531052761,-151.0,0.000235,5]
[365202657,1749531052771,-30171.75847775,0.000235,7]
[365202658,1749531052780,-12523.340796,0.000235,2]
[365202660,1749531052789,-151.0,0.000235,7]
[365202662,1749531052799,-151.0,0.000235,7]
[365202664,1749531052808,-151.0,0.000235,7]
[365202667,1749531052818,-151.0,0.000235,7]
[365202669,1749531052827,-151.0,0.000235,7]
[365202670,1749531052836,-155.216599,0.000235,7]
[365202673,1749531052846,-151.0,0.000235,7]
[365202675,1749531052856,-1337.436807,0.0002352,3]
[365202676,1749531052865,-576.64661529,0.00023521,9]
[365202679,1749531052875,-7109.60060849,0.00023545,2]
[365202680,1749531052885,-617.0,0.00023548,2]
[365202682,1749531052894,-767.62,0.00023556,3]
[365202684,1749531052903,-200.0,0.00023561,4]
[365202686,1749531052913,-200.0,0.00023561,4]
[365202689,1749531052922,-200.0,0.00023561,4]
[365202690,1749531052931,-200.0,0.00023561,4]
[365202692,1749531052941,-200.0,0.00023561,4]
[365202695,1749531052953,-200.0,0.00023561,4]
[365202697,1749531052962,-201.55034724,0.00023561,4]
[365202699,1749531052971,-460.0,0.00023561,4]
[365202701,1749531052980,-1005.23,0.00023561,4]
[365202703,1749531052990,-460.0,0.00023561,4]
[365202705,1749531053000,-460.0,0.00023561,4]
[365202707,1749531053009,-151.0,0.00023561,7]
[365202708,1749531053018,-460.0,0.00023561,4]
[365202710,1749531053028,-789.03,0.00023561,4]
[365202713,1749531053038,-460.0,0.00023561,4]
[365202715,1749531053047,-158.10592,0.00023561,7]
[365202717,1749531053057,-158.10592,0.00023561,7]
[365202718,1749531053066,-904.42,0.00023561,4]
[365202720,1749531053075,-1269.66,0.00023561,4]
[365202722,1749531053085,-4205.02,0.00023561,4]
[365202724,1749531053095,-1018.83,0.00023561,4]
[365202727,1749531053104,-923.71,0.00023561,4]
[365202728,1749531053114,-720.71,0.00023561,4]
[365202731,1749531053123,-9813.3391153,0.00023561,2]
[365202733,1749531053133,-9813.3391153,0.00023564,2]
[365202735,1749531053142,-200.45704957,0.0002357,2]
[365202737,1749531053151,-152054.65719164,0.00023571,15]
[365202739,1749531053161,-151.0,0.00023571,7]
[365202741,1749531053170,-151.0,0.00023571,7]
[365202742,1749531053179,-151.563386,0.00023571,7]
[365202745,1749531053189,-155.160346,0.00023571,7]
[365202747,1749531053198,-151.0,0.00023571,7]
[365202749,1749531053208,-151.0,0.00023571,7]
[365202751,1749531053217,-151.0,0.00023571,7]
[365202753,1749531053227,-151.0,0.00023571,7]
[365202755,1749531053236,-151.0,0.00023571,7]
[365202757,1749531053246,-151.0,0.00023571,7]
[365202759,1749531053255,-852.45271,0.00023571,2]
[365202760,1749531053264,-158.185166,0.00023571,7]
[365202762,1749531053274,-151.0,0.00023571,7]
[365202764,1749531053283,-528.973786,0.00023571,7]
[365202766,1749531053293,-528.973786,0.00023571,7]
[365202768,1749531053302,-249.107223,0.00023571,7]
[365202771,1749531053311,-151.0,0.00023571,7]
[365202773,1749531053321,-151.0,0.00023571,7]
[365202774,1749531053330,-181.342063,0.00023571,7]
[365202777,1749531053339,-181.342063,0.00023571,7]
[365202778,1749531053349,-151.0,0.00023571,7]
[365202780,1749531053359,-151.0,0.00023571,7]
[365202783,1749531053368,-151.0,0.00023571,7]
[365202784,1749531053377,-153.471097,0.00023571,7]
[365202786,1749531053386,-158.10592,0.00023571,7]
[365202789,1749531053396,-158.10592,0.00023571,7]
[365202791,1749531053406,-151.0,0.00023571,7]
[365202792,1749531053416,-151.0,0.00023571,7]
[365202794,1749531053430,-151.0,0.00023571,7]
[365202796,1749531053439,-501.13731137,0.00023573,2]
[365202798,1749531053449,-500.53175671,0.00023573,2]
[365202800,1749531053458,-500.0,0.00023573,2]
[365202802,1749531053469,-600.0,0.00023573,2]
[365202804,1749531053479,-500.0,0.00023573,2]
[365202806,1749531053488,-500.0,0.00023573,2]
[365202808,1749531053499,-500.0,0.00023573,2]
[365202810,1749531053508,-7109.60060849,0.00023582,2]
[365202812,1749531053518,-9813.3391153,0.00023595,2]
[365202814,1749531053528,-485.86,0.000236,7]
[365202816,1749531053537,-2069.0,0.00023614,2]
[365202818,1749531053547,-151.0,0.00023614,7]
[365202820,1749531053557,-16922.939724,0.00023626,2]
[365202822,1749531053567,-16922.939724,0.00023631,2]
[365202824,1749531053576,-16922.939724,0.00023633,2]
[365202826,1749531053587,-165.70855414,0.00023638,2]
[365202828,1749531053596,-3772.04,0.00023648,3]
[365202830,1749531053605,-767.62,0.00023656,3]
[365202832,1749531053615,-7109.60060849,0.00023659,2]
[365202834,1749531053629,-576.64661529,0.00023659,9]
[365202836,1749531053639,-7109.60060849,0.00023672,2]
[365202838,1749531053648,-9813.3391153,0.00023682,2]
[365202840,1749531053658,-2008.0,0.00023684,7]
[365202842,1749531053667,-401.0,0.00023684,7]
[365202844,1749531053677,-401.0,0.00023684,7]
[365202846,1749531053687,-1021.0,0.00023684,7]
[365202848,1749531053697,-500.0,0.0002369,2]
[365202850,1749531053707,-16922.939724,0.00023698,2]
[365202852,1749531053716,-160.0,0.000237,5]
[365202854,1749531053726,-6000.0,0.00023722,3]
[365202856,1749531053735,-371.1330319,0.00023726,2]
[365202858,1749531053745,-501.75308559,0.00023748,2]
[365202859,1749531053755,-767.62,0.00023756,6]
[365202861,1749531053765,-800.0,0.00023764,2]
[365202863,1749531053775,-316.0,0.00023768,3]
[365202865,1749531053785,-316.0,0.00023768,3]
[365202867,1749531053794,-316.0,0.00023768,3]
[365202869,1749531053804,-316.0,0.00023768,3]
[365202871,1749531053815,-328.020454,0.00023768,3]
[365202873,1749531053825,-500.0,0.00023773,2]
[365202875,1749531053835,-500.57016739,0.00023773,2]
[365202877,1749531053844,-12492.39244627,0.0002378,5]
[365202879,1749531053855,-800.0,0.00023789,2]
[365202881,1749531053864,-754.0,0.0002379,2]
[365202883,1749531053874,-576.64661529,0.00023797,9]
[365202885,1749531053885,-200.0,0.00023799,2]
[365202887,1749531053894,-269.4942735,0.00023799,2]
[365202889,1749531053904,-14455.81637656,0.000238,2]
[365202891,1749531053914,-59889.22590162,0.000238,2]
[365202893,1749531053924,-160.0,0.000238,6]
[365202895,1749531053934,-306.79764681,0.000238,5]
[365202897,1749531053943,-151.0,0.000238,9]
[365202899,1749531053953,-310012.08256375,0.000238,3]
[365202900,1749531053962,-151.0,0.000238,7]
[365202903,1749531053972,-154.404416,0.000238,7]
[365202905,1749531053984,-151.0,0.000238,7]
[365202907,1749531053993,-151.532531,0.000238,7]
[365202908,1749531054003,-151.0,0.000238,7]
[365202910,1749531054012,-213.1263252,0.000238,3]
[365202912,1749531054021,-160.0,0.000238,3]
[365202914,1749531054030,-500.0,0.000238,9]
[365202916,1749531054040,-151.0,0.000238,7]
[365202918,1749531054049,-158.362726,0.000238,7]
[365202920,1749531054059,-151.0,0.000238,7]
[365202922,1749531054068,-151.778115,0.000238,7]
[365202924,1749531054077,-151.150968,0.000238,7]
[365202926,1749531054087,-152.145249,0.000238,7]
[365202928,1749531054095,-155.340108,0.000238,7]
[365202929,1749531054105,-155.340108,0.000238,7]
[365202931,1749531054114,-151.0,0.000238,7]
[365202934,1749531054125,-151.0,0.000238,7]
[365202936,1749531054134,-151.0,0.000238,7]
[365202937,1749531054144,-156.278267,0.000238,7]
[365202940,1749531054155,-151.0,0.000238,7]
[365202941,1749531054164,-156.21785,0.000238,7]
[365202943,1749531054173,-151.0,0.000238,7]
[365202945,1749531054183,-238.759527,0.000238,7]
[365202947,1749531054192,-238.759527,0.000238,7]
[365202949,1749531054201,-151.0,0.000238,7]
[365202951,1749531054212,-1007.329801,0.000238,5]
[365202953,1749531054221,-151.0,0.000238,7]
[365202955,1749531054231,-852.45271,0.000238,2]
[365202957,1749531054240,-151.0,0.000238,7]
[365202959,1749531054250,-528.973786,0.000238,7]
[365202968,1749531054259,-528.973786,0.000238,7]
[365202971,1749531054355,-151.0,0.000238,7]
[365202973,1749531054364,-151.0,0.000238,7]
[365202975,1749531054374,-209.898236,0.000238,30]
[365202977,1749531054383,-181.342063,0.000238,7]
[365202979,1749531054392,-181.342063,0.000238,7]
[365202981,1749531054402,-151.0,0.000238,7]
[365202983,1749531054411,-151.0,0.000238,7]
[365202985,1749531054423,-151.0,0.000238,7]
[365202987,1749531054433,-834.9046531,0.000238,3]
[365202988,1749531054442,-158.10592,0.000238,7]
[365202990,1749531054451,-158.10592,0.000238,7]
[365202992,1749531054460,-229.6792923,0.000238,3]
[365202994,1749531054471,-151.0,0.000238,7]
[365202996,1749531054480,-250.896548,0.000238,7]
[365202998,1749531054490,-151.0,0.000238,7]
[365203000,1749531054500,-2069.0,0.00023802,2]
[365203002,1749531054509,-200.43437654,0.00023807,2]
[365203004,1749531054522,-6000.0,0.00023808,3]
[365203006,1749531054531,-2000.0,0.00023808,2]
[365203008,1749531054541,-2000.0,0.00023808,2]
[365203009,1749531054550,-2000.0,0.00023808,2]
[365203011,1749531054560,-2000.0,0.00023808,2]
[365203013,1749531054570,-2000.0,0.00023808,2]
[365203015,1749531054579,-597.83924358,0.00023808,2]
[365203031,1749531054732,-1402.16075642,0.00023808,2]
[365203033,1749531054742,-2000.0,0.00023808,2]
[365203035,1749531054751,-2000.0,0.00023808,2]
[365203037,1749531054761,-2000.0,0.00023808,2]
[365203039,1749531054770,-2000.0,0.00023808,2]
[365203041,1749531054780,-153.51449462,0.00023808,2]
[365203043,1749531054791,-1846.48550538,0.00023808,2]
[365203046,1749531054805,-2000.0,0.00023808,2]
[365203048,1749531054814,-454.21772948,0.00023808,2]
[365203050,1749531054823,-1650.91637981,0.00023809,2]
[365203072,1749531055036,-500.0,0.00019691,2]
[365203074,1749531055047,-304.71651119,0.00019691,2]
[365203076,1749531055056,-405.11029657,0.00021095,4]
[365203078,1749531055067,-54.88970343,0.00021095,4]
[365203080,1749531055076,-434.31351726,0.00021095,4]
[365203082,1749531055086,-420.44042905,0.00021095,4]
[365203732,1749531104530,164.721338,0.00013699,2]
[365203734,1749531154830,1072.10552244,0.00024712,120]
[365203735,1749531161732,555.0,0.00024658,120]
[365203736,1749531168861,555.0,0.00024658,120]
[365203743,1749531326122,555.0,0.00024658,120]
[365203749,1749531573431,500.0,0.00024657,120]
[365203750,1749531590249,662.0,0.00024657,120]
[365203760,1749532164887,157.81244,0.00013699,2]
[365204062,1749532243220,-1591.80000001,0.00019092,6]
[365204064,1749532243232,-397.6416416,0.00019092,6]
[365205085,1749532319310,585.87716642,0.0002,120]
[365205087,1749532406558,185.0,0.000178,2]
[365205088,1749532427874,11194.26278174,0.00024696,120]
[365205089,1749532430230,189.34682828,0.000178,2]
[365205095,1749532735551,-5000.0,0.00019265,2]
[365205096,1749532736077,-300.0,0.00019485,2]
[365205097,1749532736099,-22416.0,0.00019486,2]
[365205098,1749532806054,721.538,0.00024658,120]
[365205118,1749533123387,-240.76098103,0.00018824,6]
[365205120,1749533128272,-443.96974471,0.00018824,6]
[365205124,1749533134054,-180.81256741,0.00018824,6]
[365205126,1749533136247,-183.2082641,0.00018824,6]
[365205128,1749533142084,-193.3401252,0.00018824,6]
[365205129,1749533144479,-405.77758657,0.00018824,6]
[365205130,1749533151195,-158.18523208,0.00018824,6]
[365205131,1749533157749,-267.08857453,0.00018824,6]
[365205132,1749533161632,-225.72729437,0.00018824,6]
[365205133,1749533165807,-200.94979533,0.00018824,6]
[365205134,1749533167375,-182.57529871,0.00018824,6]
[365205135,1749533168909,-158.2113714,0.00018824,6]
[365205136,1749533173499,-156.63888565,0.00018824,6]
[365205137,1749533175309,-407.26157157,0.00018824,6]
[365205138,1749533182342,-238.86868655,0.00018824,6]
[365205139,1749533184585,-213.56734835,0.00018824,6]
[365205140,1749533190092,-209.37251466,0.00018824,6]
[365205141,1749533193401,-247.73682323,0.00018824,6]
[365205142,1749533198385,-174.22238937,0.00018824,6]
[365205143,1749533199977,-152.0,0.00018824,6]
[365205145,1749533206891,-204.02502917,0.00018824,6]
[365205146,1749533211842,-155.69991601,0.00018824,6]
[365205147,1749533211865,-74.71938621,0.00019206,2]
[365205148,1749533214233,-110.65770042,0.00019206,2]
[365205149,1749533214261,-102.83090886,0.00019356,2]
[365205150,1749533215982,-173.899304,0.00019356,2]
[365205152,1749533223429,-210.55479717,0.00019014,2]
[365205153,1749533225022,-325.92725365,0.00019014,2]
[365205154,1749533230220,-213.65266235,0.00019014,2]
[365205155,1749533233078,-178.21868232,0.00019014,2]
[365205157,1749533238740,-223.14975991,0.00019014,2]
[365205158,1749533240366,-295.82490863,0.00019014,2]
[365205159,1749533246030,-278.37449426,0.00019014,2]
[365205160,1749533248052,-151.06405933,0.00019014,2]
[365205161,1749533254201,-226.84863573,0.00019014,2]
[365205162,1749533256426,-153.95114488,0.00019014,2]
[365205163,1749533261806,-230.91,0.00019014,2]
[365205165,1749533263364,-224.66716219,0.00019014,2]
[365205166,1749533270507,-875.67865265,0.00018,2]
[365205168,1749533279709,-304.04355231,0.00018,2]
[365205169,1749533282352,300.0,0.00017999,2]
[365205170,1749533286929,-255.45969918,0.00018,2]
[365205173,1749533293809,-181.53788833,0.00018,2]
[365205177,1749533296063,-254.77063096,0.00018,2]
[365205179,1749533303233,-189.59887719,0.00018,2]
[365205180,1749533310771,-290.0,0.00018,2]
[365205182,1749533313521,-443.45777451,0.00018,2]
[365205184,1749533318072,-329.35289405,0.00018,2]
[365205186,1749533321457,-166.33929179,0.00018,2]
[365205187,1749533321664,5814.29366539,0.00015,2]
[365205188,1749533321686,5001.53809305,0.00015,2]
[365205189,1749533323799,7555.79290695,0.0001,2]
[365205190,1749533323822,7310.54000095,0.0001,2]
[365205191,1749533325971,-158.62,0.00018,2]
[365205192,1749533328660,-169.15053979,0.00018,2]
[365205193,1749533333731,-173.0,0.00018,2]
[365205194,1749533336267,-225.8752612,0.00018,2]
[365205195,1749533341842,-403.93909557,0.00018,2]
[365205197,1749533351137,-486.35336061,0.00018,2]
[365205198,1749533353051,-211.22775025,0.00018,2]
[365205199,1749533358583,-428.96289744,0.00018,2]
[365205200,1749533360860,-163.82220355,0.00018,2]
[365205202,1749533367057,-433.35779645,0.00018,2]
[365205203,1749533375020,-204.76240816,0.00018,2]
[365205204,1749533377229,-335.09127445,0.00018,2]
[365205214,1749533381866,-371.3766681,0.00018,2]
[365205215,1749533383358,-627.59947221,0.00018,2]
[365205216,1749533384956,-163.37215916,0.00018,2]
[365205217,1749533390462,-162.41875086,0.00018,2]
[365205219,1749533397867,-154.00870972,0.00018,2]
[365205220,1749533401684,-163.74806093,0.00018,2]
[365205221,1749533402432,300.0,0.00017999,2]
[365205222,1749533402642,300.0,0.00017999,2]
[365205223,1749533402858,300.0,0.00017999,2]
[365205229,1749533406114,-224.536575,0.00018,2]
[365205230,1749533406153,4346.79099905,0.00018,2]
[365205231,1749533406179,653.20900095,0.00018,2]
[365205232,1749533409664,1200.0,0.00017999,2]
[365205233,1749533414878,-176.95264947,0.00018,2]
[365205234,1749533422705,5000.0,0.00018,2]
[365205235,1749533424793,-440.0,0.00018,2]
[365205236,1749533430112,-180.0,0.00018,2]
[365205256,1749533432733,-883.0389889,0.00018,2]
[365205257,1749533432759,-314.298,0.00018,2]
[365205258,1749533433021,-8661.90632322,0.00018,2]
[365205259,1749533433031,-4064.77429328,0.00018,2]
[365205260,1749533433041,-861.03,0.00018,2]
[365205261,1749533433051,-495.42670214,0.00019356,2]
[365205262,1749533433061,-2484.0,0.00019486,2]
[365205263,1749533433071,-163.2171263,0.00019632,2]
[365205264,1749533433083,-267.0,0.00019735,2]
[365205265,1749533433093,-300.0,0.00019797,2]
[365205266,1749533433103,-10495.28542199,0.000198,7]
[365205267,1749533433113,-11858.11761888,0.000198,7]
[365205268,1749533433122,-533.47850351,0.0002,30]
[365205269,1749533433132,-715.36,0.00020071,2]
[365205270,1749533433141,-678.12940099,0.000201,2]
[365205271,1749533433151,-678.12940083,0.000201,2]
[365205272,1749533433160,-678.12940083,0.00020245,2]
[365205273,1749533433171,-160.676377,0.00020281,2]
[365205274,1749533433181,-160.676377,0.00020383,2]
[365205275,1749533433190,-678.12940083,0.00020417,3]
[365205276,1749533433199,-678.12940083,0.0002059,3]
[365205277,1749533433209,-678.12940083,0.00020762,3]
[365205278,1749533433218,-1000.0,0.000208,2]
[365205279,1749533433228,-678.12940083,0.00020934,4]
[365205280,1749533433238,-642.42820931,0.00020995,2]
[365205281,1749533433250,-500.0,0.00021073,2]
[365205282,1749533433259,-500.0,0.00021073,2]
[365205283,1749533433269,-500.0,0.00021073,2]
[365205284,1749533433278,-500.0,0.00021073,2]
[365205285,1749533433287,-1006.5,0.00021085,3]
[365205286,1749533433297,-600.95,0.00021085,3]
[365205287,1749533433307,-300.47,0.00021085,3]
[365205288,1749533433317,-150.24,0.00021085,3]
[365205289,1749533433330,-450.72,0.00021085,3]
[365205290,1749533433340,-178.12,0.00021085,10]
[365205291,1749533433350,-440.0,0.00021095,4]
[365205292,1749533433359,-201.28796667,0.00021095,4]
[365205293,1749533433370,-485.01409408,0.00021095,4]
[365205294,1749533433380,-484.69583888,0.00021095,4]
[365205295,1749533433391,-440.0,0.00021095,4]
[365205296,1749533433401,-440.0,0.00021095,4]
[365205297,1749533433412,-440.0,0.00021095,4]
[365205298,1749533433422,-445.01493801,0.00021095,4]
[365205299,1749533433432,-503.10703841,0.00021095,4]
[365205300,1749533433443,-440.0,0.00021095,4]
[365205301,1749533433453,-440.0,0.00021095,4]
[365205302,1749533433463,-440.0,0.00021095,4]
[365205303,1749533433474,-440.0,0.00021095,4]
[365205304,1749533433484,-440.0,0.00021095,4]
[365205305,1749533433494,-276.79705119,0.00021095,4]
[365205306,1749533433504,-440.0,0.00021095,4]
[365205307,1749533433515,-440.0,0.00021095,4]
[365205308,1749533433526,-443.20317942,0.00021095,4]
[365205309,1749533433536,-440.0,0.00021095,4]
[365205310,1749533433547,-440.0,0.00021095,4]
[365205311,1749533433557,-553.42206027,0.00021095,4]
[365205312,1749533433567,-440.0,0.00021095,4]
[365205313,1749533433579,-440.0,0.00021095,4]
[365205314,1749533433589,-440.0,0.00021095,4]
[365205315,1749533433598,-440.0,0.00021095,4]
[365205316,1749533433608,-454.38761225,0.00021095,4]
[365205317,1749533433618,-440.0,0.00021095,4]
[365205318,1749533433628,-484.7725793,0.00021095,4]
[365205319,1749533433637,-440.0,0.00021095,4]
[365205320,1749533433648,-349.11508254,0.00021095,4]
[365205321,1749533433657,-440.0,0.00021095,4]
[365205322,1749533433667,-445.62958318,0.00021095,4]
[365205323,1749533433677,-440.0,0.00021095,4]
[365205324,1749533433687,-440.0,0.00021095,4]
[365205325,1749533433696,-430.9,0.00021095,4]
[365205326,1749533433706,-420.0,0.00021095,4]
[365205327,1749533433716,-416.99533379,0.00021095,4]
[365205328,1749533433726,-406.22968231,0.00021095,4]
[365205329,1749533433736,-478.46555076,0.00021095,4]
[365205330,1749533433746,-440.0,0.00021095,4]
[365205331,1749533433756,-164.94476446,0.00021095,4]
[365205332,1749533433766,-440.0,0.00021095,4]
[365205333,1749533433775,-401.26596422,0.00021095,4]
[365205334,1749533433785,-364.69904894,0.00021095,4]
[365205335,1749533433794,-447.38050556,0.00021095,4]
[365205336,1749533433804,-459.78178476,0.00021095,4]
[365205337,1749533433814,-231.91853613,0.00021095,4]
[365205338,1749533433824,-445.57137237,0.00021095,4]
[365205339,1749533433834,-476.82779773,0.00021095,4]
[365205340,1749533433844,-444.52655013,0.00021095,4]
[365205341,1749533433853,-434.89830456,0.00021095,4]
[365205342,1749533433864,-438.59038416,0.00021095,4]
[365205343,1749533433874,-441.77036437,0.00021095,4]
[365205344,1749533433884,-456.03039921,0.00021095,4]
[365205345,1749533433894,-439.79299069,0.00021095,4]
[365205346,1749533433904,-455.07831358,0.00021095,4]
[365205347,1749533433914,-391.25837261,0.00021095,4]
[365205348,1749533433925,-418.05180835,0.00021095,4]
[365205349,1749533433936,-438.12991136,0.00021095,4]
[365205350,1749533433947,-485.44277521,0.00021095,4]
[365205351,1749533433957,-447.4980039,0.00021095,4]
[365205352,1749533433967,-442.20894272,0.00021095,4]
[365205353,1749533433977,-440.27063137,0.00021095,4]
[365205354,1749533433987,-434.58132469,0.00021095,4]
[365205355,1749533433998,-440.4486813,0.00021095,4]
[365205356,1749533434008,-440.0,0.00021095,4]
[365205357,1749533434019,-313.3224875,0.00021095,4]
[365205358,1749533434030,-447.53429348,0.00021095,4]
[365205359,1749533434041,-439.35935501,0.00021095,4]
[365205360,1749533434051,-251.43738626,0.00021095,4]
[365205361,1749533434061,-420.0,0.00021095,4]
[365205362,1749533434073,-436.9226561,0.00021095,4]
[365205363,1749533434084,-402.4643783,0.00021095,4]
[365205364,1749533434095,-319.13802745,0.00021095,4]
[365205365,1749533434105,-204.51879655,0.00021095,4]
[365205366,1749533434115,-521.44884869,0.00021095,4]
[365205367,1749533434125,-442.8084193,0.00021095,4]